bitfinex/quotes_BTCUSD_20250328
["timestamp","ask_amount","ask_price","bid_price","bid_amount"]
[1743184685610,0.38979197,84146.0,84145.0,0.01787805]
[1743184685840,0.52607197,84146.0,84145.0,0.01787805]
[1743184686755,0.52607197,84146.0,84145.0,0.0033372]
[1743184695507,0.38979197,84146.0,84145.0,0.0033372]
[1743184695842,0.52607197,84146.0,84145.0,0.0033372]
[1743184696424,0.64032961,84146.0,84145.0,0.0033372]
[1743184697870,0.52607197,84146.0,84145.0,0.0003372]
[1743184699301,0.52607197,84146.0,84145.0,0.0023372]
[1743184699861,0.52607197,84146.0,84145.0,0.0003372]
[1743184700064,0.52707197,84146.0,84145.0,0.0013372]
[1743184703630,0.39079197,84146.0,84145.0,0.0013372]
[1743184703830,0.52707197,84146.0,84145.0,0.0013372]
[1743184704253,0.54522427,84146.0,84145.0,0.0013372]
[1743184707131,0.40894427,84146.0,84145.0,2e-07]
[1743184707312,0.40894427,84146.0,84129.0,2e-07]
[1743184707313,0.249613,84130.0,84129.0,2e-07]
[1743184707522,0.835693,84130.0,84129.0,0.00013303]
[1743184707672,0.9544123,84130.0,84129.0,0.00013303]
[1743184707855,0.9544123,84130.0,84129.0,3e-08]
[1743184709046,0.9294123,84130.0,84129.0,3e-08]
[1743184709379,0.9294123,84130.0,84129.0,0.00300003]
[1743184709963,0.94106762,84130.0,84129.0,3e-08]
[1743184710626,0.95971478,84130.0,84129.0,3e-08]
[1743184710997,1.05532526,84130.0,84129.0,3e-08]
[1743184711398,1.05532526,84130.0,84119.0,0.0003374]
[1743184711399,0.249642,84120.0,84119.0,0.0003374]
[1743184711552,0.33624054,84120.0,84119.0,0.0003374]
[1743184712633,0.33624054,84120.0,84119.0,0.0013374]
[1743184713317,0.33724054,84120.0,84119.0,0.0013374]
[1743184713924,0.3543539,84120.0,84119.0,0.0013374]
[1743184716970,0.4018539,84120.0,84119.0,0.0013374]
[1743184719230,0.38474054,84120.0,84119.0,0.0013374]
[1743184720861,0.52102054,84120.0,84119.0,0.0013374]
[1743184721401,0.25964054,84120.0,84119.0,0.0013374]
[1743184721651,0.39592054,84120.0,84119.0,0.0013374]
[1743184722127,0.25964054,84120.0,84119.0,0.0013374]
[1743184722327,0.39592054,84120.0,84119.0,0.0013374]
[1743184724090,0.45955871,84120.0,84119.0,0.0013374]
[1743184726983,0.32327871,84120.0,84119.0,0.0013374]
[1743184727186,0.45955871,84120.0,84119.0,0.0013374]
[1743184727503,0.39592054,84120.0,84119.0,0.0013374]
[1743184732134,0.47452054,84120.0,84119.0,0.0013374]
[1743184738964,0.47452054,84120.0,84119.0,4e-07]
[1743184739175,0.52072054,84120.0,84119.0,4e-07]
[1743184743008,0.52072054,84120.0,84119.0,0.0003382]
[1743184743220,0.63497818,84120.0,84119.0,0.0003382]
[1743184744038,0.52072054,84120.0,84119.0,0.0003382]
[1743184746376,0.38444054,84120.0,84119.0,0.0003382]
[1743184746578,0.25964054,84120.0,84119.0,0.0003382]
[1743184746789,0.39592054,84120.0,84119.0,0.0003382]
[1743184751677,0.25964054,84120.0,84119.0,0.0003382]
[1743184752142,0.39588054,84120.0,84119.0,0.0003382]
[1743184752365,0.38399354,84120.0,84119.0,0.12913669]
[1743184752562,0.00999854,84120.0,84119.0,0.39084204]
[1743184752761,0.39588054,84120.0,84119.0,0.14119704]
[1743184753498,0.39588054,84120.0,84119.0,0.14119664]
[1743184753637,0.39488054,84120.0,84119.0,0.14119664]
[1743184754797,0.39504944,84120.0,84119.0,0.14119664]
[1743184755314,0.39504944,84120.0,84119.0,0.13213629]
[1743184756508,0.39504944,84120.0,84119.0,0.14421367]
[1743184759216,0.00916744,84120.0,84119.0,0.47195867]
[1743184759416,0.14540744,84120.0,84119.0,0.52015867]
[1743184759617,0.1364089,84120.0,84119.0,0.52932567]
[1743184760222,0.1364089,84120.0,84119.0,1.22932567]
[1743184760631,0.0001689,84129.0,84128.0,0.249618]
[1743184760828,0.0001689,84129.0,84128.0,0.36387564]
[1743184761307,0.0001689,84129.0,84128.0,0.37841649]
[1743184761708,0.1363689,84129.0,84128.0,0.37841649]
[1743184761928,0.1363689,84129.0,84128.0,0.36653049]
[1743184762148,0.1363689,84129.0,84128.0,0.37453049]
[1743184762762,0.14320107,84129.0,84128.0,1.07453049]
[1743184763003,0.14320107,84129.0,84128.0,0.83679849]
[1743184763944,0.14320107,84129.0,84128.0,0.13679849]
[1743184766449,0.00700107,84129.0,84128.0,0.49189953]
[1743184766750,0.1363689,84129.0,84128.0,0.49189953]
[1743184767558,0.1363689,84129.0,84128.0,0.48689953]
[1743184767719,0.1363689,84129.0,84128.0,0.49289953]
[1743184768258,0.1363689,84129.0,84128.0,0.47801353]
[1743184768599,0.1363689,84129.0,84128.0,1.19389953]
[1743184771835,0.0001689,84129.0,84128.0,1.19389953]
[1743184772034,0.1363289,84129.0,84128.0,1.19389953]
[1743184774124,0.0001689,84129.0,84128.0,1.19389953]
[1743184774331,0.1363289,84129.0,84128.0,1.24089953]
[1743184774551,0.0001689,84129.0,84128.0,1.24089953]
[1743184774755,0.1363289,84129.0,84128.0,1.24089953]
[1743184775159,0.1363289,84129.0,84128.0,1.18201353]
[1743184775479,0.1363289,84129.0,84128.0,1.19389953]
[1743184777216,0.0001689,84129.0,84128.0,1.19389953]
[1743184777432,0.1363289,84129.0,84128.0,1.19389953]
[1743184779062,0.1363289,84129.0,84128.0,0.49389953]
[1743184781160,0.0001689,84129.0,84128.0,0.49389953]
[1743184781365,0.0001689,84129.0,84128.0,0.84589953]
[1743184781557,0.0001689,84129.0,84128.0,0.88267627]
[1743184782098,0.0001689,84129.0,84128.0,1.58267627]
[1743184782496,0.0001689,84129.0,84128.0,1.57867627]
[1743184782818,0.0001689,84129.0,84128.0,1.58467627]
[1743184783179,0.0001689,84129.0,84128.0,1.57867627]
[1743184783384,0.0001689,84129.0,84128.0,1.58467627]
[1743184783623,0.0001689,84129.0,84128.0,1.62039427]
[1743184784041,0.0001689,84129.0,84128.0,1.60939427]
[1743184784268,0.0001689,84129.0,84128.0,1.61539427]
[1743184784418,0.0001689,84129.0,84128.0,1.57861753]
[1743184787886,0.0001689,84129.0,84128.0,1.57261753]
[1743184788832,0.0001689,84129.0,84128.0,1.56661753]
[1743184789161,0.0001689,84129.0,84128.0,1.57261753]
[1743184789330,0.0001689,84129.0,84128.0,1.61543339]
[1743184789528,0.1362889,84129.0,84128.0,1.62043339]
[1743184791097,0.0001689,84129.0,84128.0,1.62043339]
[1743184791302,0.0001688,84146.0,84145.0,0.26410885]
[1743184791526,0.1362888,84146.0,84145.0,0.37836649]
[1743184792305,0.1362888,84146.0,84145.0,1.07836649]
[1743184792892,0.0001688,84146.0,84145.0,1.08236649]
[1743184793105,0.1362888,84146.0,84145.0,1.08236649]
[1743184793455,0.1362888,84146.0,84145.0,1.0972953]
[1743184796715,0.1362888,84146.0,84145.0,1.12130323]
[1743184799770,0.1362888,84146.0,84145.0,0.42130323]
[1743184800888,0.1362888,84146.0,84145.0,0.17173523]
[1743184801093,0.1362888,84146.0,84145.0,0.39783357]
[1743184801473,0.1362888,84146.0,84145.0,0.41237442]
[1743184801651,0.1362888,84146.0,84145.0,0.40237442]
[1743184802050,0.1362888,84146.0,84145.0,0.40537442]
[1743184802251,0.0001688,84146.0,84145.0,0.41037442]
[1743184802450,0.1362488,84146.0,84145.0,0.41037442]
[1743184802752,0.0001688,84146.0,84145.0,0.41945835]
[1743184802957,0.1362488,84146.0,84145.0,1.11945835]
[1743184803345,0.4683148,84146.0,84145.0,0.86080642]
[1743184803472,0.2187488,84146.0,84145.0,0.86080642]
[1743184803682,0.2187488,84146.0,84145.0,1.11037442]
[1743184804167,0.2187488,84146.0,84145.0,0.41037442]
[1743184804566,0.2187488,84146.0,84145.0,0.40537442]
[1743184804790,0.2187488,84146.0,84145.0,0.40237442]
[1743184805014,0.2187488,84146.0,84145.0,0.40737442]
[1743184805232,0.2187488,84146.0,84145.0,0.41037442]
[1743184806035,0.2187488,84146.0,84145.0,0.16080642]
[1743184806403,0.5163148,84146.0,84145.0,0.16080642]
[1743184806987,0.63057244,84146.0,84145.0,0.008]
[1743184807125,0.5163148,84146.0,84145.0,0.008]
[1743184807903,0.1277,84128.0,84123.0,0.011887]
[1743184808085,0.1277,84128.0,84127.0,0.237735]
[1743184808258,0.18328,84128.0,84127.0,0.40248434]
[1743184808461,0.0826,84133.0,84127.0,0.40248434]
[1743184808662,0.0468,84139.0,84138.0,0.25224485]
[1743184808863,0.13608,84139.0,84138.0,0.37838749]
[1743184809028,0.0001688,84146.0,84145.0,0.26410885]
[1743184809247,0.1362488,84146.0,84145.0,0.37936649]
[1743184809460,0.1362488,84146.0,84145.0,0.12879849]
[1743184809703,0.4535308,84146.0,84145.0,0.12879849]
[1743184809901,0.2158488,84146.0,84145.0,0.12879849]
[1743184810104,0.2158488,84146.0,84145.0,0.36648249]
[1743184810308,0.1362488,84146.0,84145.0,0.37836649]
[1743184811975,0.1362488,84146.0,84145.0,0.37936649]
[1743184812248,0.1362488,84146.0,84145.0,0.38136649]
[1743184812452,0.1362488,84146.0,84145.0,0.38236649]
[1743184812757,0.1362488,84146.0,84145.0,0.37936649]
[1743184812961,0.0001688,84146.0,84145.0,0.38236649]
[1743184813094,0.1362488,84146.0,84145.0,0.38236649]
[1743184813735,0.1362488,84146.0,84145.0,1.08236649]
[1743184813936,0.2155488,84146.0,84145.0,1.08236649]
[1743184814741,0.2155488,84146.0,84145.0,1.08136649]
[1743184814965,0.2155488,84146.0,84145.0,1.08436649]
[1743184815163,0.2155488,84146.0,84145.0,1.10488444]
[1743184815509,0.2155488,84146.0,84145.0,0.40988444]
[1743184815711,0.2155488,84146.0,84145.0,0.16131644]
[1743184815887,0.2155488,84146.0,84145.0,0.41088444]
[1743184816093,0.2274328,84146.0,84145.0,0.15631644]
[1743184816303,0.51458599,84146.0,84145.0,0.004]
[1743184816511,0.5116148,84146.0,84145.0,0.007]
[1743184817311,0.51856751,84146.0,84145.0,0.007]
[1743184817628,0.53050994,84146.0,84145.0,0.007]
[1743184817830,0.53050994,84146.0,84145.0,0.003]
[1743184818249,0.53050994,84146.0,84145.0,0.004]
[1743184818656,0.39442994,84146.0,84145.0,0.004]
[1743184818798,0.51856751,84146.0,84145.0,0.001]
[1743184819203,0.51856751,84146.0,84145.0,0.004]
[1743184819617,0.51856751,84146.0,84145.0,0.001]
[1743184820056,0.51856751,84146.0,84145.0,0.003]
[1743184820643,0.38248751,84146.0,84145.0,0.003]
[1743184821036,0.51856751,84146.0,84145.0,0.003]
[1743184827427,0.26900151,84146.0,84145.0,0.26710885]
[1743184827645,0.51856751,84146.0,84145.0,0.01754085]
[1743184827927,0.26900151,84146.0,84145.0,0.26710885]
[1743184828140,0.26900151,84146.0,84145.0,0.25522485]
[1743184828367,0.00712151,84146.0,84145.0,0.38136649]
[1743184828594,0.14320151,84146.0,84145.0,0.38136649]
[1743184828850,0.1362488,84146.0,84145.0,0.38136649]
[1743184829095,0.1362488,84146.0,84145.0,0.37936649]
[1743184829340,0.1362488,84146.0,84145.0,0.37836649]
[1743184829616,0.237696,84141.0,84136.0,0.01218795]
[1743184829836,0.2233328,84146.0,84127.0,0.011886]
[1743184829837,0.011885,84134.0,84127.0,0.011886]
[1743184830065,0.011885,84134.0,84124.0,0.011887]
[1743184830066,0.237724,84131.0,84130.0,0.12879849]
[1743184830297,0.449004,84131.0,84130.0,0.12879849]
[1743184830538,0.449004,84131.0,84125.0,0.00620385]
[1743184830539,0.249613,84130.0,84126.0,0.237736]
[1743184830759,0.237727,84130.0,84126.0,0.02642685]
[1743184831004,0.449004,84131.0,84128.0,0.01454085]
[1743184831206,0.05567551,84130.0,84129.0,0.26449465]
[1743184831397,0.05567551,84130.0,84129.0,0.28864889]
[1743184832212,0.05567551,84130.0,84129.0,0.29464889]
[1743184832422,0.05567551,84130.0,84129.0,0.29864889]
[1743184833013,0.29340251,84130.0,84129.0,0.04903289]
[1743184833213,0.05567551,84130.0,84129.0,0.29864889]
[1743184833564,0.3599157,84130.0,84129.0,0.0043378]
[1743184833775,0.43304396,84130.0,84129.0,0.0043378]
[1743184833924,0.43304396,84130.0,84129.0,0.0103378]
[1743184834549,0.38138851,84130.0,84129.0,0.0043378]
[1743184834711,0.38138851,84130.0,84129.0,0.0003378]
[1743184834912,0.38138851,84130.0,84129.0,0.0063378]
[1743184835344,0.51746851,84130.0,84129.0,0.0043378]
[1743184836408,0.26785551,84130.0,84129.0,0.25660865]
[1743184836532,0.00607551,84130.0,84129.0,0.36686629]
[1743184836728,0.14215551,84130.0,84129.0,0.12913629]
[1743184836931,0.249613,84130.0,84129.0,0.12913629]
[1743184837174,0.37983829,84130.0,84129.0,0.12913629]
[1743184837384,0.14211129,84130.0,84129.0,0.12913629]
[1743184837588,0.00603129,84130.0,84129.0,0.38075229]
[1743184837793,0.237724,84131.0,84130.0,0.01454085]
[1743184837965,0.373804,84131.0,84130.0,0.12879849]
[1743184838406,0.38569,84131.0,84130.0,0.12879849]
[1743184839141,0.39172129,84131.0,84130.0,0.12879849]
[1743184839426,0.25564129,84131.0,84130.0,0.12879849]
[1743184839629,0.39172129,84131.0,84130.0,0.12879849]
[1743184840004,0.39172129,84131.0,84130.0,0.13079849]
[1743184840546,0.14211129,84131.0,84130.0,0.13079849]
[1743184840776,0.14211129,84131.0,84130.0,0.36852549]
[1743184840976,0.14211129,84131.0,84130.0,0.38041149]
[1743184841422,0.00603129,84131.0,84130.0,0.38041149]
[1743184841672,0.14211129,84131.0,84130.0,0.38041149]
[1743184841930,0.0001688,84146.0,84145.0,0.237684]
[1743184842159,0.1362488,84146.0,84145.0,0.37836649]
[1743184842401,0.00620108,84146.0,84145.0,0.37836649]
[1743184842633,0.14228108,84146.0,84145.0,0.37836649]
[1743184842870,0.1362488,84146.0,84145.0,0.37836649]
[1743184843108,0.1362488,84146.0,84145.0,0.39008536]
[1743184843586,0.0001688,84146.0,84145.0,0.39008536]
[1743184843820,0.1362488,84146.0,84145.0,0.39008536]
[1743184844072,0.1362488,84146.0,84145.0,0.69008536]
[1743184844321,8e-07,84146.0,84145.0,0.69508536]
[1743184844558,8e-07,84146.0,84145.0,0.73287493]
[1743184844803,0.0001689,84158.0,84157.0,0.3]
[1743184845058,0.00061208,84158.0,84157.0,0.67833149]
[1743184845292,0.00061208,84158.0,84157.0,0.71510589]
[1743184845507,0.00061208,84158.0,84157.0,0.67833149]
[1743184845732,0.00061208,84158.0,84157.0,0.71404049]
[1743184846172,8e-08,84158.0,84157.0,0.71404049]
[1743184847065,0.4174,84193.0,84190.0,0.23600933]
[1743184847444,0.08313288,84191.0,84190.0,0.36214397]
[1743184847446,0.00633101,84191.0,84190.0,0.36214397]
[1743184848029,0.01876273,84191.0,84190.0,0.11425764]
[1743184848244,0.01876273,84191.0,84189.0,0.237559]
[1743184848459,0.16117184,84191.0,84189.0,0.237559]
[1743184848743,0.15480273,84191.0,84189.0,0.237559]
[1743184848916,0.00638091,84190.0,84189.0,0.237559]
[1743184849365,0.00638091,84190.0,84188.0,0.26146609]
[1743184850525,0.13604,84189.0,84188.0,0.26146609]
[1743184850751,0.13604,84189.0,84188.0,0.27334409]
[1743184850945,0.14242182,84189.0,84188.0,0.27634409]
[1743184851228,0.13604,84189.0,84188.0,0.27634409]
[1743184851474,0.01893153,84191.0,84190.0,0.237557]
[1743184851714,0.15493153,84191.0,84190.0,0.237557]
[1743184852195,0.16131335,84191.0,84190.0,0.237557]
[1743184852691,0.15493153,84191.0,84190.0,0.237557]
[1743184853417,0.15493153,84191.0,84190.0,0.240557]
[1743184853902,0.16131335,84191.0,84190.0,0.240557]
[1743184854190,0.16131335,84191.0,84190.0,0.241557]
[1743184855103,0.02531335,84191.0,84190.0,0.36769164]
[1743184855317,0.16131335,84191.0,84190.0,0.36769164]
[1743184855521,0.15493153,84191.0,84190.0,0.36769164]
[1743184855681,0.13630168,84191.0,84190.0,0.36769164]
[1743184857861,0.13626168,84191.0,84190.0,0.36769164]
[1743184859466,0.13626168,84191.0,84190.0,0.36469164]
[1743184859762,0.13626168,84191.0,84190.0,0.36769164]
[1743184860311,0.15489029,84191.0,84190.0,0.36469164]
[1743184860511,0.01893029,84191.0,84190.0,0.11825764]
[1743184860713,0.78432229,84191.0,84190.0,0.004]
[1743184860917,0.86348403,84191.0,84190.0,0.004]
[1743184861113,0.86348403,84191.0,84190.0,0.006]
[1743184861322,0.7908049,84191.0,84190.0,0.006]
[1743184861742,0.4908049,84191.0,84190.0,0.004]
[1743184861941,0.3429679,84191.0,84190.0,0.0043376]
[1743184862140,0.1613729,84191.0,84190.0,0.0043376]
[1743184862399,0.4108049,84191.0,84190.0,0.0043376]
[1743184862635,0.4108049,84191.0,84190.0,0.0003376]
[1743184863239,0.4108049,84191.0,84190.0,0.0013376]
[1743184863967,0.4008049,84191.0,84190.0,0.0013376]
[1743184864163,0.39187461,84191.0,84190.0,0.0013376]
[1743184864591,0.14244261,84191.0,84190.0,0.0013376]
[1743184864713,0.14244261,84191.0,84190.0,0.2388946]
[1743184865149,0.13596,84191.0,84190.0,0.2388946]
[1743184865778,0.13596,84191.0,84190.0,0.2507716]
[1743184866327,0.0001688,84195.0,84194.0,0.237546]
[1743184866538,0.1361288,84195.0,84194.0,0.36368064]
[1743184867686,0.1547575,84195.0,84194.0,0.36668064]
[1743184867886,0.0187975,84195.0,84194.0,0.36768064]
[1743184868082,0.1547575,84195.0,84194.0,0.36368064]
[1743184868287,0.1547575,84195.0,84194.0,0.36768064]
[1743184868481,0.1547575,84195.0,84194.0,0.36968064]
[1743184869933,0.0187975,84195.0,84194.0,0.36968064]
[1743184870160,0.1547575,84195.0,84194.0,0.36968064]
[1743184870768,0.0187975,84195.0,84194.0,0.36968064]
[1743184870948,0.1547575,84195.0,84194.0,0.36968064]
[1743184871539,0.0187975,84195.0,84194.0,0.36968064]
[1743184871744,0.1547575,84195.0,84194.0,0.36968064]
[1743184872074,0.0187975,84195.0,84194.0,0.36968064]
[1743184872272,0.1547575,84195.0,84194.0,0.36968064]
[1743184873074,0.0187975,84195.0,84194.0,0.36968064]
[1743184873284,0.1359605,84195.0,84194.0,0.38422149]
[1743184873541,0.13596,84195.0,84194.0,0.38422149]
[1743184873949,0.2377118,84195.0,84194.0,0.006]
[1743184874151,0.74853516,84195.0,84194.0,0.002]
[1743184874352,0.74853516,84195.0,84190.0,0.0003376]
[1743184874353,0.4288894,84195.0,84190.0,0.0003376]
[1743184874570,0.4407664,84195.0,84194.0,0.005]
[1743184874773,0.4407664,84195.0,84194.0,0.008]
[1743184874976,0.4407664,84195.0,84194.0,0.003]
[1743184875311,0.237555,84191.0,84190.0,0.0003376]
[1743184875520,0.24406694,84191.0,84190.0,0.0003376]
[1743184875722,0.25594394,84191.0,84190.0,0.0003376]
[1743184876531,0.27457472,84191.0,84190.0,0.0003376]
[1743184876736,0.02514272,84191.0,84190.0,0.0003376]
[1743184877128,0.02514272,84191.0,84190.0,0.2408946]
[1743184877334,0.16106272,84191.0,84190.0,0.2408946]
[1743184877535,0.16106272,84191.0,84190.0,0.2527716]
[1743184877762,0.01863078,84191.0,84190.0,0.36802924]
[1743184877968,0.13592,84191.0,84190.0,0.36802924]
[1743184878311,0.0001688,84195.0,84194.0,0.249423]
[1743184878509,0.1361288,84195.0,84194.0,0.36368064]
[1743184878725,0.1361288,84195.0,84194.0,0.37822149]
[1743184880573,0.1361288,84195.0,84194.0,0.04178429]
[1743184880776,0.1361288,84195.0,84194.0,0.245546]
[1743184880972,0.16127874,84195.0,84194.0,0.257423]
[1743184881294,0.16127874,84195.0,84194.0,0.008]
[1743184881514,0.41069874,84195.0,84194.0,0.008]
[1743184881951,0.16127874,84195.0,84194.0,0.257423]
[1743184882107,0.39882174,84195.0,84194.0,0.008]
[1743184882304,0.02531874,84195.0,84194.0,0.38622149]
[1743184882527,0.1547162,84195.0,84194.0,0.42301048]
[1743184882710,0.0187962,84195.0,84194.0,0.41801048]
[1743184882915,0.1547162,84195.0,84194.0,0.42001048]
[1743184883523,0.1547162,84195.0,84194.0,0.41501048]
[1743184883723,0.1360888,84195.0,84194.0,0.41901048]
[1743184884382,0.1360888,84195.0,84194.0,0.41801048]
[1743184885715,0.1360888,84195.0,84194.0,0.42301048]
[1743184886080,0.0001688,84195.0,84194.0,0.42301048]
[1743184886286,0.1360888,84195.0,84194.0,0.42301048]
[1743184886816,0.15471508,84195.0,84194.0,0.42301048]
[1743184886997,0.01879508,84195.0,84194.0,0.42301048]
[1743184887202,0.15471508,84195.0,84194.0,0.42301048]
[1743184888272,0.15471508,84195.0,84194.0,0.50391048]
[1743184888724,0.15471508,84195.0,84194.0,0.42301048]
[1743184889855,0.15471508,84195.0,84194.0,1.12301048]
[1743184891153,0.15471508,84195.0,84194.0,1.10781953]
[1743184892633,0.15471508,84195.0,84194.0,1.14351653]
[1743184893443,0.01879508,84195.0,84194.0,1.14351653]
[1743184893647,0.15471508,84195.0,84194.0,1.14351653]
[1743184894664,0.15471508,84195.0,84194.0,1.10672754]
[1743184894990,0.1360888,84195.0,84194.0,1.07103054]
[1743184897138,0.1360888,84195.0,84194.0,1.05648969]
[1743184897376,0.3855088,84195.0,84194.0,0.708]
[1743184897616,0.47823456,84195.0,84194.0,0.708]
[1743184897874,0.47823456,84195.0,84194.0,0.945546]
[1743184897875,0.2217737,84195.0,84194.0,0.945546]
[1743184898133,0.2217737,84195.0,84194.0,0.957423]
[1743184898364,0.2217737,84195.0,84194.0,0.2577606]
[1743184898839,0.2217737,84195.0,84194.0,0.2458836]
[1743184899534,0.2217737,84195.0,84194.0,0.0083376]
[1743184899714,0.24040149,84195.0,84194.0,0.0083376]
[1743184899923,0.48982149,84195.0,84194.0,0.0083376]
[1743184900299,0.24040149,84195.0,84194.0,0.0083376]
[1743184900507,0.25227849,84195.0,84194.0,0.0083376]
[1743184900722,0.25227849,84195.0,84194.0,0.0033376]
[1743184900971,0.48982149,84195.0,84194.0,0.0033376]
[1743184901718,0.48982149,84195.0,84194.0,0.0003376]
[1743184902439,0.48982149,84195.0,84194.0,0.0043376]
[1743184903239,0.48982149,84195.0,84194.0,0.0063376]
[1743184903848,0.48982149,84195.0,84194.0,0.0023376]
[1743184904052,0.47794449,84195.0,84194.0,0.0033376]
[1743184904309,0.24040149,84195.0,84194.0,0.0033376]
[1743184904480,0.25227849,84195.0,84194.0,0.0033376]
[1743184904709,0.56643298,84195.0,84194.0,0.0033376]
[1743184904886,0.53522149,84195.0,84194.0,0.0033376]
[1743184905465,0.5165937,84195.0,84194.0,0.0003376]
[1743184905661,0.5165937,84195.0,84194.0,0.0023376]
[1743184906402,0.5165937,84195.0,84194.0,0.0003376]
[1743184906634,0.5165937,84195.0,84194.0,0.0013376]
[1743184907260,0.1312537,84195.0,84194.0,0.2388836]
[1743184907447,0.0067537,84195.0,84194.0,0.37955909]
[1743184907650,0.1360888,84195.0,84194.0,0.37955909]
[1743184907889,0.0001688,84195.0,84194.0,0.37955909]
[1743184908160,0.1360888,84195.0,84194.0,0.37955909]
[1743184908770,0.15471595,84195.0,84194.0,0.37955909]
[1743184909206,0.15471595,84195.0,84194.0,0.37855909]
[1743184909452,0.15471595,84195.0,84194.0,0.38155909]
[1743184909628,0.15471595,84195.0,84194.0,1.08155909]
[1743184909837,0.39225895,84195.0,84194.0,0.83213609]
[1743184910047,0.39797241,84195.0,84194.0,0.81459524]
[1743184910257,0.39797241,84195.0,84194.0,0.81959524]
[1743184910456,0.16042941,84195.0,84194.0,0.81959524]
[1743184910668,0.40984941,84195.0,84194.0,0.7053376]
[1743184910873,0.48664941,84195.0,84194.0,0.0073376]
[1743184911653,0.53614941,84195.0,84194.0,0.0073376]
[1743184911977,0.54802312,84195.0,84194.0,0.0073376]
[1743184912172,0.53614941,84195.0,84194.0,0.0033376]
[1743184912472,0.51752226,84195.0,84194.0,0.0043376]
[1743184912677,0.51752226,84195.0,84194.0,0.0063376]
[1743184912978,0.5361519,84195.0,84194.0,0.0003376]
[1743184913208,0.59424446,84195.0,84194.0,0.0003376]
[1743184913411,1.02027321,84195.0,84194.0,0.0003376]
[1743184913617,1.02027321,84195.0,84194.0,0.0023376]
[1743184914352,0.84792301,84195.0,84194.0,0.0023376]
[1743184914591,0.68160226,84195.0,84194.0,0.0023376]
[1743184914791,0.81752226,84195.0,84194.0,0.0003376]
[1743184917607,0.83615356,84195.0,84194.0,0.0003376]
[1743184918606,0.81752226,84195.0,84194.0,0.0003376]
[1743184920547,0.9317799,84195.0,84194.0,0.0003376]
[1743184921022,1.04603754,84195.0,84194.0,6e-07]
[1743184921221,1.04603754,84195.0,84153.0,0.011883]
[1743184921222,0.011882,84154.0,84152.0,0.01184248]
[1743184921534,0.011882,84154.0,84150.0,0.10704947]
[1743184921535,0.249551,84151.0,84150.0,0.10704947]
[1743184921764,0.00563716,84153.0,84151.0,0.01207876]
[1743184921999,0.011881,84166.0,84152.0,0.11425764]
[1743184922248,0.0822,84169.0,84152.0,0.11425764]
[1743184922249,0.0822,84169.0,84161.0,0.011881]
[1743184922473,0.1478,84168.0,84164.0,0.237631]
[1743184922699,0.011879,84178.0,84169.0,0.249496]
[1743184922927,0.011879,84178.0,84171.0,0.01188]
[1743184923180,0.011879,84178.0,84169.0,0.01188]
[1743184923181,0.13596,84175.0,84169.0,0.11425764]
[1743184923401,0.01188,84172.0,84169.0,0.11425764]
[1743184923590,0.13596,84175.0,84172.0,0.01188]
[1743184923724,0.13596,84175.0,84173.0,0.237605]
[1743184923931,0.13596,84175.0,84170.0,0.02425698]
[1743184924147,0.13596,84175.0,84174.0,0.249483]
[1743184924363,0.011879,84180.0,84175.0,0.2376]
[1743184924600,0.01188,84169.0,84164.0,0.23763]
[1743184924846,0.24949,84172.0,84167.0,0.02387588]
[1743184925084,0.237619,84168.0,84167.0,0.02387588]
[1743184925313,0.249499,84168.0,84167.0,0.02387588]
[1743184925536,0.237649,84158.0,84154.0,0.25219685]
[1743184925761,0.13596,84157.0,84156.0,0.26407585]
[1743184926019,0.13596,84157.0,84156.0,0.37833349]
[1743184926971,0.237603,84174.0,84170.0,0.237614]
[1743184927176,0.237603,84174.0,84168.0,0.249498]
[1743184927382,0.14159716,84173.0,84170.0,0.237614]
[1743184927801,0.14159716,84173.0,84171.0,0.237609]
[1743184928210,0.37920316,84173.0,84170.0,0.237614]
[1743184928624,0.237609,84172.0,84170.0,0.002]
[1743184928808,0.249491,84171.0,84170.0,0.002]
[1743184929028,0.237619,84169.0,84164.0,0.23763]
[1743184929253,0.011881,84167.0,84156.0,0.04966039]
[1743184929451,0.237634,84163.0,84159.0,0.01454085]
[1743184929646,0.237634,84163.0,84160.0,0.11425764]
[1743184929647,0.237639,84162.0,84160.0,0.11425764]
[1743184929876,0.00563716,84162.0,84161.0,0.237639]
[1743184930084,0.00563716,84162.0,84161.0,0.36377764]
[1743184930293,0.237567,84187.0,84179.0,0.237588]
[1743184930501,0.15459389,84180.0,84179.0,0.237588]
[1743184930671,0.16023105,84180.0,84179.0,0.36372464]
[1743184931495,0.16034671,84180.0,84179.0,0.36372464]
[1743184932056,0.15470955,84180.0,84179.0,0.36372464]
[1743184932849,0.15470955,84180.0,84179.0,0.36572464]
[1743184933658,0.01874955,84180.0,84179.0,0.39194786]
[1743184933852,0.15470955,84180.0,84179.0,0.39194786]
[1743184934481,0.15470955,84180.0,84179.0,0.4159497]
[1743184935903,0.01874955,84180.0,84179.0,0.4159497]
[1743184936125,0.15470955,84180.0,84179.0,0.4159497]
[1743184936333,0.13607566,84180.0,84179.0,0.50151543]
[1743184936622,0.00011566,84180.0,84179.0,0.80151543]
[1743184936791,0.13607566,84180.0,84179.0,0.80151543]
[1743184937206,0.00011566,84180.0,84179.0,0.84781543]
[1743184937366,0.13607566,84180.0,84179.0,0.84781543]
[1743184937560,0.13607566,84180.0,84179.0,0.85081543]
[1743184938379,0.13607566,84180.0,84179.0,0.4189497]
[1743184938546,0.13607566,84180.0,84179.0,0.4169497]
[1743184938756,0.13607566,84180.0,84179.0,0.4219497]
[1743184939479,0.15470629,84180.0,84179.0,0.4219497]
[1743184941313,0.16658529,84180.0,84179.0,0.15794185]
[1743184941520,0.41964192,84180.0,84179.0,0.15794185]
[1743184941686,0.02439191,84180.0,84179.0,0.40740885]
[1743184941883,0.16035191,84180.0,84179.0,0.4219497]
[1743184942046,0.15470629,84180.0,84179.0,0.4219497]
[1743184942250,0.02439191,84180.0,84179.0,0.4219497]
[1743184942493,0.01874629,84180.0,84179.0,0.4219497]
[1743184942694,0.01874629,84180.0,84179.0,0.5008497]
[1743184942893,0.15478629,84180.0,84179.0,0.5008497]
[1743184943781,0.15478629,84180.0,84179.0,0.4219497]
[1743184944409,0.39237229,84180.0,84179.0,0.1724827]
[1743184944610,0.39237229,84180.0,84179.0,0.4219497]
[1743184944611,0.15478629,84180.0,84179.0,0.4219497]
[1743184944788,0.16049322,84180.0,84179.0,0.4219497]
[1743184945424,0.15478629,84180.0,84179.0,0.4219497]
[1743184945586,0.15478629,84180.0,84179.0,0.4100707]
[1743184945818,0.15478629,84180.0,84179.0,0.1724827]
[1743184946022,0.44586382,84180.0,84179.0,0.13394001]
[1743184946281,0.20227455,84180.0,84179.0,0.37152801]
[1743184946436,0.45173955,84180.0,84179.0,0.13394001]
[1743184946645,0.39149639,84180.0,84179.0,0.12225764]
[1743184947490,0.39149639,84180.0,84179.0,0.008]